fUSD/lending_fUSD_20250716
["ID","MTS","AMOUNT","RATE_DAILY","PERIOD"]
[372585445,1752694247778,-957.85,0.00020136,2]
[372585447,1752694247787,-1424.69,0.00020136,2]
[372585449,1752694247797,-460.0,0.00020136,2]
[372585451,1752694247806,-524.94049809,0.00020136,2]
[372585454,1752694247818,-28755.27,0.00020136,2]
[372585455,1752694247829,-1935.43,0.00020136,2]
[372585458,1752694247839,-460.0,0.00020136,2]
[372585460,1752694247848,-1704.7,0.00020136,2]
[372585461,1752694247857,-460.0,0.00020136,2]
[372585463,1752694247867,-4659.09,0.00020136,2]
[372585465,1752694247876,-460.0,0.00020136,2]
[372585468,1752694247889,-1897.12,0.00020136,2]
[372585470,1752694247899,-460.0,0.00020136,2]
[372585472,1752694247907,-460.0,0.00020136,2]
[372585474,1752694247917,-666.96,0.00020136,2]
[372585476,1752694247926,-1688.57,0.00020136,2]
[372585478,1752694247937,-460.0,0.00020136,2]
[372585480,1752694247947,-460.0,0.00020136,2]
[372585482,1752694247956,-460.0,0.00020136,2]
[372585484,1752694247965,-469.65,0.00020136,2]
[372585486,1752694247975,-681.41,0.00020136,2]
[372585488,1752694247984,-565.15511003,0.00020136,2]
[372585490,1752694247994,-1780.26,0.00020136,2]
[372585492,1752694248003,-583.11,0.00020136,2]
[372585494,1752694248013,-833.15,0.00020136,2]
[372585496,1752694248022,-460.0,0.00020136,2]
[372585498,1752694248032,-14499.52,0.00020136,2]
[372585500,1752694248043,-490.59903826,0.00020136,2]
[372585502,1752694248053,-300.0,0.00020136,2]
[372585504,1752694248063,-561.17,0.00020136,2]
[372585506,1752694248073,-1905.83,0.00020136,2]
[372585508,1752694248083,-696.16,0.00020136,2]
[372585510,1752694248093,-539.8,0.00020136,2]
[372585512,1752694248103,-460.0,0.00020136,2]
[372585514,1752694248112,-460.0,0.00020136,2]
[372585515,1752694248121,-477.43,0.00020136,2]
[372585517,1752694248131,-1534.79,0.00020136,2]
[372585519,1752694248140,-999.3,0.00020136,2]
[372585522,1752694248150,-460.0,0.00020136,2]
[372585524,1752694248159,-1916.81,0.00020136,2]
[372585526,1752694248167,-460.0,0.00020136,2]
[372585528,1752694248177,-556.89,0.00020136,2]
[372585530,1752694248188,-5492.42,0.00020136,2]
[372585532,1752694248198,-575.28,0.00020136,2]
[372585534,1752694248207,-504.15,0.00020136,2]
[372585536,1752694248216,-460.0,0.00020136,2]
[372585537,1752694248226,-20173.8,0.00020136,2]
[372585539,1752694248236,-460.0,0.00020136,2]
[372585542,1752694248246,-460.0,0.00020136,2]
[372585543,1752694248255,-460.0,0.00020136,2]
[372585545,1752694248265,-1126.17,0.00020136,2]
[372585547,1752694248275,-1749.11,0.00020136,2]
[372585549,1752694248285,-460.0,0.00020136,2]
[372585551,1752694248295,-460.0,0.00020136,2]
[372585553,1752694248305,-460.0,0.00020136,2]
[372585555,1752694248316,-460.0,0.00020136,2]
[372585557,1752694248325,-460.0,0.00020136,2]
[372585559,1752694248335,-1743.43,0.00020136,2]
[372585561,1752694248345,-460.0,0.00020136,2]
[372585563,1752694248355,-469.75,0.00020136,2]
[372585565,1752694248365,-460.0,0.00020136,2]
[372585567,1752694248375,-460.0,0.00020136,2]
[372585569,1752694248385,-3807.88,0.00020136,2]
[372585571,1752694248395,-460.0,0.00020136,2]
[372585573,1752694248406,-1924.77,0.00020136,2]
[372585575,1752694248416,-460.0,0.00020136,2]
[372585577,1752694248426,-1430.3,0.00020136,2]
[372585579,1752694248437,-460.0,0.00020136,2]
[372585581,1752694248447,-1538.52,0.00020136,2]
[372585583,1752694248457,-460.0,0.00020136,2]
[372585585,1752694248467,-460.0,0.00020136,2]
[372585587,1752694248476,-778.91,0.00020136,2]
[372585589,1752694248486,-462.63349962,0.00020136,2]
[372585591,1752694248496,-2522.39,0.00020136,2]
[372585593,1752694248507,-670.27,0.00020136,2]
[372585595,1752694248516,-1027.2,0.00020136,2]
[372585597,1752694248526,-460.0,0.00020136,2]
[372585599,1752694248536,-460.0,0.00020136,2]
[372585601,1752694248545,-460.0,0.00020136,2]
[372585603,1752694248555,-551.73,0.00020136,2]
[372585605,1752694248565,-460.0,0.00020136,2]
[372585607,1752694248575,-460.0,0.00020136,2]
[372585609,1752694248584,-757.32,0.00020136,2]
[372585628,1752694248770,-1567.6,0.00020136,2]
[372585630,1752694248781,-3913.3,0.00020136,2]
[372585632,1752694248791,-547.19546923,0.00020136,2]
[372585634,1752694248801,-536.71,0.00020136,2]
[372585636,1752694248811,-460.0,0.00020136,2]
[372585638,1752694248822,-5842.8,0.00020136,2]
[372585640,1752694248832,-3344.01,0.00020136,2]
[372585642,1752694248842,-1129.98,0.00020136,2]
[372585644,1752694248851,-593.19,0.00020136,2]
[372585646,1752694248869,-424.67754871,0.00020136,2]
[372585648,1752694248882,-659.29,0.00020136,2]
[372585650,1752694248891,-1804.39,0.00020136,2]
[372585652,1752694248902,-1932.82,0.00020136,2]
[372585654,1752694248912,-1408.65,0.00020136,2]
[372585656,1752694248922,-767.34,0.00020136,2]
[372585658,1752694248934,-460.0,0.00020136,2]
[372585660,1752694248943,-645.81,0.00020136,2]
[372585662,1752694248953,-460.0,0.00020136,2]
[372585664,1752694248963,-460.0,0.00020136,2]
[372585666,1752694248972,-3981.88,0.00020136,2]
[372585668,1752694248982,-1682.16,0.00020136,2]
[372585670,1752694248991,-461.94884471,0.00020136,2]
[372585672,1752694249002,-460.0,0.00020136,2]
[372585674,1752694249012,-460.0,0.00020136,2]
[372585676,1752694249022,-490.0,0.00020136,2]
[372585678,1752694249032,-460.0,0.00020136,2]
[372585680,1752694249041,-460.0,0.00020136,2]
[372585682,1752694249051,-12723.88,0.00020136,2]
[372585684,1752694249062,-460.0,0.00020136,2]
[372585686,1752694249072,-460.0,0.00020136,2]
[372585688,1752694249082,-670.06,0.00020136,2]
[372585691,1752694249092,-460.0,0.00020136,2]
[372585692,1752694249102,-3114.36,0.00020136,2]
[372585695,1752694249113,-4835.02578598,0.00020163,2]
[372585697,1752694249123,-960.54859386,0.00020176,2]
[372585698,1752694249134,-199.72442584,0.00020187,2]
[372585700,1752694249144,-226.35,0.00020187,2]
[372585702,1752694249155,-1000.0,0.00020199,2]
[372585705,1752694249165,-150.0,0.00020199,2]
[372585707,1752694249176,-300.0,0.00020199,2]
[372585709,1752694249187,-200.0,0.000202,2]
[372585711,1752694249196,-500.0,0.00020207,2]
[372585712,1752694249206,-500.0,0.00020207,2]
[372585714,1752694249216,-1000.0,0.00020213,2]
[372585717,1752694249226,-250.0,0.00020213,2]
[372585718,1752694249236,-300.0,0.00020213,2]
[372585720,1752694249247,-5013.92174006,0.00020218,2]
[372585723,1752694249267,-4647.89481583,0.00020248,2]
[372585724,1752694249279,-4171.0650471,0.00020248,2]
[372585727,1752694249289,-500.0,0.00020252,2]
[372585729,1752694249299,-460.0,0.00020252,2]
[372585731,1752694249310,-6271.53,0.00020252,2]
[372585732,1752694249320,-2395.89,0.00020252,2]
[372585734,1752694249330,-2253.51,0.00020252,2]
[372585736,1752694249340,-2984.68,0.00020252,2]
[372585738,1752694249349,-1035.24,0.00020252,2]
[372585740,1752694249359,-4601.06,0.00020252,2]
[372585742,1752694249369,-12291.03,0.00020252,2]
[372585744,1752694249380,-460.0,0.00020252,2]
[372585747,1752694249389,-2813.36,0.00020252,2]
[372585749,1752694249399,-2348.95,0.00020252,2]
[372585751,1752694249409,-1391.5,0.00020252,2]
[372585752,1752694249419,-3452.04,0.00020252,2]
[372585754,1752694249429,-968.86,0.00020252,2]
[372585757,1752694249440,-2953.12,0.00020252,2]
[372585758,1752694249450,-646.85,0.00020252,2]
[372585760,1752694249460,-11314.79,0.00020252,2]
[372585763,1752694249470,-2418.2,0.00020252,2]
[372585764,1752694249480,-3107.21,0.00020252,2]
[372585766,1752694249491,-2361.71,0.00020252,2]
[372585768,1752694249501,-729.37,0.00020252,2]
[372585770,1752694249511,-1621.06,0.00020252,2]
[372585772,1752694249521,-460.0,0.00020253,2]
[372585774,1752694249530,-460.0,0.00020253,2]
[372585776,1752694249539,-1194.52,0.00020253,2]
[372585778,1752694249549,-3120.91,0.00020253,2]
[372585780,1752694249559,-460.0,0.00020253,2]
[372585782,1752694249568,-5223.53,0.00020253,2]
[372585784,1752694249578,-398.42,0.00020253,2]
[372585786,1752694249587,-3137.69,0.00020253,2]
[372585788,1752694249597,-460.0,0.00020253,2]
[372585790,1752694249607,-3420.9,0.00020253,2]
[372585792,1752694249616,-460.0,0.00020253,2]
[372585794,1752694249627,-460.0,0.00020253,2]
[372585796,1752694249636,-1086.3,0.00020253,2]
[372585798,1752694249646,-9171.8,0.00020253,2]
[372585800,1752694249656,-727.29,0.00020253,2]
[372585802,1752694249665,-3548.11,0.00020253,2]
[372585804,1752694249675,-460.0,0.00020253,2]
[372585806,1752694249687,-1563.95,0.00020253,2]
[372585808,1752694249701,-1111.61,0.00020253,2]
[372585810,1752694249711,-460.0,0.00020253,2]
[372585812,1752694249720,-5933.97,0.00020253,2]
[372585814,1752694249731,-2817.29,0.00020253,2]
[372585816,1752694249741,-493.91,0.00020253,2]
[372585818,1752694249751,-460.0,0.00020253,2]
[372585820,1752694249761,-460.0,0.00020253,2]
[372585822,1752694249771,-3695.96,0.00020253,2]
[372585824,1752694249781,-460.0,0.00020253,2]
[372585826,1752694249791,-460.0,0.00020253,2]
[372585828,1752694249800,-460.0,0.00020253,2]
[372585830,1752694249812,-460.0,0.00020253,2]
[372585832,1752694249822,-1320.64,0.00020253,2]
[372585834,1752694249832,-460.0,0.00020253,2]
[372585836,1752694249841,-467.9,0.00020253,2]
[372585838,1752694249851,-2898.84,0.00020253,2]
[372585840,1752694249860,-460.0,0.00020253,2]
[372585842,1752694249870,-1132.7,0.00020253,2]
[372585844,1752694249879,-355.8192079,0.00020253,2]
[372585846,1752694249888,-460.0,0.00020253,2]
[372585848,1752694249898,-543.5,0.00020253,2]
[372585850,1752694249907,-150.0,0.00020262,2]
[372585851,1752694249916,-500.0,0.00020262,2]
[372585853,1752694249926,-500.0,0.00020262,2]
[372585855,1752694249937,-150.0,0.00020262,2]
[372585857,1752694249946,-476.0,0.00020262,2]
[372585859,1752694249956,-500.0,0.00020262,2]
[372585861,1752694249965,-150.0,0.00020262,2]
[372585863,1752694249975,-500.0,0.00020262,2]
[372585865,1752694249984,-500.0,0.00020262,2]
[372585867,1752694249993,-500.0,0.00020262,2]
[372585869,1752694250002,-500.0,0.00020262,2]
[372585871,1752694250012,-1455.0,0.00020262,2]
[372585873,1752694250021,-500.0,0.00020262,2]
[372585875,1752694250031,-4741.0,0.00020262,2]
[372585877,1752694250040,-1972.0,0.00020262,2]
[372585879,1752694250050,-150.0,0.00020262,2]
[372585881,1752694250059,-500.0,0.00020262,2]
[372585883,1752694250069,-150.0,0.00020262,2]
[372585885,1752694250078,-150.0,0.00020262,2]
[372585887,1752694250087,-732.34,0.00020272,2]
[372585889,1752694250096,-1656.95,0.00020273,2]
[372585891,1752694250105,-587.64,0.00020273,2]
[372585893,1752694250114,-460.0,0.00020273,2]
[372585895,1752694250123,-461.31470509,0.00020273,2]
[372585897,1752694250132,-1564.78,0.00020273,2]
[372585899,1752694250141,-460.0,0.00020273,2]
[372585901,1752694250151,-460.0,0.00020273,2]
[372585902,1752694250160,-772.32,0.00020273,2]
[372585905,1752694250169,-460.0,0.00020273,2]
[372585907,1752694250179,-3144.44,0.00020273,2]
[372585908,1752694250190,-1330.7,0.00020273,2]
[372585910,1752694250200,-1896.94,0.00020273,2]
[372585912,1752694250210,-460.0,0.00020273,2]
[372585914,1752694250219,-1097.47,0.00020273,2]
[372585915,1752694250229,-1469.82,0.00020273,2]
[372585916,1752694250238,-460.0,0.00020273,2]
[372585917,1752694250247,-957.9,0.00020273,2]
[372585918,1752694250256,-460.0,0.00020273,2]
[372585919,1752694250266,-460.0,0.00020273,2]
[372585920,1752694250275,-460.0,0.00020273,2]
[372585921,1752694250284,-460.0,0.00020273,2]
[372585922,1752694250293,-460.0,0.00020273,2]
[372585923,1752694250302,-2876.39,0.00020273,2]
[372585924,1752694250311,-1934.86,0.00020273,2]
[372585925,1752694250320,-460.0,0.00020273,2]
[372585926,1752694250330,-2608.13,0.00020273,2]
[372585927,1752694250340,-460.0,0.00020273,2]
[372585929,1752694250352,-460.0,0.00020273,2]
[372585931,1752694250362,-460.0,0.00020273,2]
[372585933,1752694250372,-460.0,0.00020273,2]
[372585935,1752694250381,-526.01,0.00020273,2]
[372585937,1752694250390,-460.0,0.00020273,2]
[372585939,1752694250399,-460.0,0.00020273,2]
[372585941,1752694250408,-491.31,0.00020273,2]
[372585943,1752694250418,-1378.67,0.00020273,2]
[372585945,1752694250427,-830.86,0.00020273,2]
[372585947,1752694250438,-460.0,0.00020273,2]
[372585949,1752694250447,-931.2,0.00020273,2]
[372585951,1752694250457,-1983.58,0.00020273,2]
[372585953,1752694250466,-1359.65,0.00020273,2]
[372585955,1752694250476,-1745.99,0.00020273,2]
[372585957,1752694250486,-503.6,0.00020273,2]
[372585959,1752694250495,-538.67018256,0.00020273,2]
[372585961,1752694250505,-922.13,0.00020273,2]
[372585963,1752694250514,-2672.79,0.00020273,2]
[372585965,1752694250524,-460.0,0.00020273,2]
[372585967,1752694250533,-460.0,0.00020273,2]
[372585969,1752694250544,-640.94,0.00020273,2]
[372585971,1752694250554,-9838.15,0.00020273,2]
[372585973,1752694250564,-460.0,0.00020273,2]
[372585975,1752694250574,-460.0,0.00020273,2]
[372585977,1752694250583,-2925.31,0.00020273,2]
[372585979,1752694250592,-2608.25,0.00020273,2]
[372585981,1752694250602,-460.0,0.00020273,2]
[372585983,1752694250612,-869.77,0.00020273,2]
[372585985,1752694250622,-460.0,0.00020273,2]
[372585987,1752694250632,-460.0,0.00020273,2]
[372585989,1752694250642,-1672.48,0.00020273,2]
[372585991,1752694250651,-460.0,0.00020273,2]
[372585993,1752694250661,-1140.6,0.00020273,2]
[372585995,1752694250670,-460.0,0.00020273,2]
[372585997,1752694250680,-460.0,0.00020273,2]
[372585999,1752694250691,-1043.68,0.00020273,2]
[372586001,1752694250701,-460.0,0.00020273,2]
[372586004,1752694250711,-500.0,0.00020273,2]
[372586005,1752694250720,-1932.45,0.00020273,2]
[372586007,1752694250731,-59244.77,0.00020273,2]
[372586009,1752694250740,-460.0,0.00020273,2]
[372586011,1752694250752,-959.99,0.00020273,2]
[372586014,1752694250762,-626.11,0.00020273,2]
[372586015,1752694250771,-1729.85,0.00020273,2]
[372586017,1752694250781,-1819.74,0.00020273,2]
[372586019,1752694250791,-460.0,0.00020273,2]
[372586021,1752694250800,-3818.88,0.00020273,2]
[372586023,1752694250810,-4762.78,0.00020273,2]
[372586025,1752694250820,-460.0,0.00020273,2]
[372586027,1752694250830,-460.0,0.00020273,2]
[372586029,1752694250839,-460.0,0.00020273,2]
[372586031,1752694250849,-460.0,0.00020273,2]
[372586033,1752694250858,-1231.4,0.00020273,2]
[372586035,1752694250868,-725.57,0.00020273,2]
[372586066,1752694250877,-460.0,0.00020273,2]
[372586074,1752694251228,-460.0,0.00020273,2]
[372586076,1752694251237,-6423.53,0.00020273,2]
[372586078,1752694251247,-512.32,0.00020273,2]
[372586081,1752694251257,-460.0,0.00020273,2]
[372586083,1752694251266,-460.0,0.00020273,2]
[372586085,1752694251279,-5637.6,0.00020273,2]
[372586087,1752694251289,-8631.44,0.00020273,2]
[372586089,1752694251299,-460.0,0.00020273,2]
[372586091,1752694251309,-611.66,0.00020273,2]
[372586093,1752694251320,-460.0,0.00020273,2]
[372586095,1752694251329,-460.0,0.00020273,2]
[372586097,1752694251339,-3109.43,0.00020273,2]
[372586099,1752694251348,-460.0,0.00020273,2]
[372586101,1752694251357,-2174.91,0.00020273,2]
[372586103,1752694251367,-460.0,0.00020273,2]
[372586105,1752694251376,-3305.62,0.00020273,2]
[372586107,1752694251385,-472.6,0.00020273,2]
[372586109,1752694251395,-626.4,0.00020273,2]
[372586111,1752694251404,-759.17,0.00020273,2]
[372586113,1752694251413,-3348.08,0.00020273,2]
[372586115,1752694251422,-460.0,0.00020273,2]
[372586117,1752694251431,-460.0,0.00020273,2]
[372586119,1752694251442,-725.87,0.00020273,2]
[372586121,1752694251451,-10145.87,0.00020273,2]
[372586123,1752694251460,-537.07881155,0.00020273,2]
[372586125,1752694251470,-460.0,0.00020273,2]
[372586127,1752694251479,-460.0,0.00020273,2]
[372586129,1752694251488,-762.06,0.00020273,2]
[372586131,1752694251498,-460.0,0.00020273,2]
[372586133,1752694251507,-962.22,0.00020273,2]
[372586135,1752694251516,-460.0,0.00020273,2]
[372586137,1752694251525,-460.0,0.00020273,2]
[372586139,1752694251534,-1880.32,0.00020273,2]
[372586141,1752694251543,-599.27,0.00020273,2]
[372586143,1752694251552,-1461.49,0.00020273,2]
[372586144,1752694251562,-1217.36,0.00020273,2]
[372586146,1752694251571,-5019.18,0.00020273,2]
[372586149,1752694251581,-460.0,0.00020273,2]
[372586151,1752694251590,-460.0,0.00020273,2]
[372586153,1752694251601,-460.0,0.00020273,2]
[372586155,1752694251610,-5738.75,0.00020273,2]
[372586157,1752694251619,-460.0,0.00020273,2]
[372586159,1752694251628,-460.0,0.00020273,2]
[372586161,1752694251637,-652.54,0.00020273,2]
[372586162,1752694251648,-281.44265781,0.00020273,2]
[372586164,1752694251657,-1261.36,0.00020273,2]
[372586167,1752694251667,-6783.38,0.00020273,2]
[372586169,1752694251677,-10900.95,0.00020273,2]
[372586170,1752694251686,-460.0,0.00020273,2]
[372586173,1752694251696,-1120.19,0.00020273,2]
[372586175,1752694251706,-1096.18,0.00020273,2]
[372586177,1752694251716,-460.0,0.00020273,2]
[372586179,1752694251726,-460.0,0.00020273,2]
[372586181,1752694251741,-460.0,0.00020273,2]
[372586183,1752694251750,-490.18,0.00020273,2]
[372586185,1752694251762,-460.0,0.00020273,2]
[372586187,1752694251771,-1512.18,0.00020273,2]
[372586189,1752694251781,-460.0,0.00020273,2]
[372586191,1752694251791,-460.0,0.00020273,2]
[372586192,1752694251800,-2746.44,0.00020273,2]
[372586194,1752694251809,-460.0,0.00020273,2]
[372586196,1752694251819,-460.0,0.00020273,2]
[372586198,1752694251830,-460.0,0.00020273,2]
[372586200,1752694251839,-2871.51,0.00020273,2]
[372586202,1752694251849,-1446.2,0.00020273,2]
[372586204,1752694251858,-460.0,0.00020273,2]
[372586206,1752694251868,-460.0,0.00020273,2]
[372586209,1752694251878,-460.0,0.00020273,2]
[372586211,1752694251887,-460.0,0.00020273,2]
[372586213,1752694251897,-571.84,0.00020273,2]
[372586215,1752694251906,-2481.38,0.00020273,2]
[372586216,1752694251915,-865.4,0.00020273,2]
[372586219,1752694251925,-1545.1,0.00020273,2]
[372586221,1752694251936,-579.12,0.00020273,2]
[372586223,1752694251948,-2865.57,0.00020273,2]
[372586225,1752694251957,-460.0,0.00020273,2]
[372586226,1752694251966,-3341.64,0.00020273,2]
[372586228,1752694251976,-954.59,0.00020273,2]
[372586231,1752694251986,-662.44,0.00020273,2]
[372586233,1752694251996,-460.0,0.00020273,2]
[372586235,1752694252005,-549.7,0.00020273,2]
[372586237,1752694252014,-460.0,0.00020273,2]
[372586239,1752694252024,-460.0,0.00020273,2]
[372586241,1752694252033,-460.0,0.00020273,2]
[372586242,1752694252043,-524.49,0.00020273,2]
[372586245,1752694252054,-1597.39,0.00020273,2]
[372586247,1752694252063,-1445.32,0.00020273,2]
[372586249,1752694252073,-460.0,0.00020273,2]
[372586251,1752694252084,-460.0,0.00020273,2]
[372586253,1752694252093,-2709.09,0.00020273,2]
[372586254,1752694252102,-5545.46,0.00020273,2]
[372586256,1752694252111,-1335.53,0.00020273,2]
[372586259,1752694252121,-510.13,0.00020273,2]
[372586261,1752694252130,-1304.17,0.00020273,2]
[372586263,1752694252139,-11171.65,0.00020273,2]
[372586265,1752694252150,-460.0,0.00020273,2]
[372586267,1752694252159,-630.1,0.00020273,2]
[372586269,1752694252168,-460.0,0.00020273,2]
[372586271,1752694252177,-2779.93,0.00020273,2]
[372586273,1752694252188,-460.0,0.00020273,2]
[372586275,1752694252197,-460.0,0.00020273,2]
[372586277,1752694252207,-460.0,0.00020273,2]
[372586279,1752694252216,-4474.38,0.00020273,2]
[372586281,1752694252225,-461.66072739,0.00020273,2]
[372586282,1752694252235,-1148.73,0.00020273,2]
[372586284,1752694252244,-460.0,0.00020273,2]
[372586287,1752694252254,-3075.57,0.00020273,2]
[372586289,1752694252264,-460.0,0.00020273,2]
[372586291,1752694252274,-526.49,0.00020273,2]
[372586293,1752694252283,-3091.6,0.00020273,2]
[372586295,1752694252293,-806.94,0.00020273,2]
[372586297,1752694252303,-2713.8,0.00020273,2]
[372586299,1752694252313,-460.0,0.00020273,2]
[372586301,1752694252323,-2266.31,0.00020273,2]
[372586303,1752694252332,-1349.87,0.00020273,2]
[372586305,1752694252342,-460.0,0.00020273,2]
[372586307,1752694252351,-549.68,0.00020273,2]
[372586309,1752694252360,-1047.43,0.00020273,2]
[372586311,1752694252370,-634.4,0.00020273,2]
[372586313,1752694252379,-2179.05,0.00020273,2]
[372586315,1752694252388,-916.81,0.00020273,2]
[372586317,1752694252398,-1174.7,0.00020273,2]
[372586319,1752694252407,-460.0,0.00020273,2]
[372586321,1752694252416,-460.0,0.00020273,2]
[372586323,1752694252425,-2595.12,0.00020273,2]
[372586325,1752694252437,-460.0,0.00020273,2]
[372586327,1752694252447,-3870.23,0.00020273,2]
[372586329,1752694252456,-561.55,0.00020273,2]
[372586331,1752694252465,-460.0,0.00020273,2]
[372586333,1752694252475,-2211.43,0.00020273,2]
[372586335,1752694252484,-460.0,0.00020273,2]
[372586337,1752694252495,-2071.85,0.00020273,2]
[372586339,1752694252505,-957.85,0.00020273,2]
[372586341,1752694252515,-1424.69,0.00020273,2]
[372586343,1752694252524,-460.0,0.00020273,2]
[372586345,1752694252534,-28755.27,0.00020273,2]
[372586347,1752694252542,-1935.43,0.00020273,2]
[372586349,1752694252552,-460.0,0.00020273,2]
[372586351,1752694252562,-1704.7,0.00020273,2]
[372586353,1752694252571,-460.0,0.00020273,2]
[372586355,1752694252581,-4659.09,0.00020273,2]
[372586357,1752694252591,-460.0,0.00020273,2]
[372586359,1752694252601,-1897.12,0.00020273,2]
[372586361,1752694252610,-460.0,0.00020273,2]
[372586362,1752694252619,-460.0,0.00020273,2]
[372586364,1752694252630,-666.96,0.00020273,2]
[372586367,1752694252641,-1688.57,0.00020273,2]
[372586368,1752694252651,-460.0,0.00020273,2]
[372586371,1752694252660,-460.0,0.00020273,2]
[372586373,1752694252669,-460.0,0.00020273,2]
[372586375,1752694252679,-469.65,0.00020273,2]
[372586377,1752694252691,-681.41,0.00020273,2]
[372586379,1752694252701,-1780.26,0.00020273,2]
[372586381,1752694252711,-583.11,0.00020273,2]
[372586383,1752694252721,-833.15,0.00020273,2]
[372586385,1752694252732,-460.0,0.00020273,2]
[372586387,1752694252743,-14499.52,0.00020273,2]
[372586389,1752694252752,-561.17,0.00020273,2]
[372586391,1752694252762,-300.0,0.00020273,2]
[372586393,1752694252772,-1905.83,0.00020273,2]
[372586395,1752694252781,-696.16,0.00020273,2]
[372586397,1752694252792,-539.8,0.00020273,2]
[372586399,1752694252801,-460.0,0.00020273,2]
[372586401,1752694252812,-477.43,0.00020273,2]
[372586403,1752694252822,-1534.79,0.00020273,2]
[372586405,1752694252832,-999.3,0.00020273,2]
[372586407,1752694252841,-460.0,0.00020273,2]
[372586409,1752694252850,-1916.81,0.00020273,2]
[372586411,1752694252859,-460.0,0.00020273,2]
[372586413,1752694252868,-575.28,0.00020273,2]
[372586415,1752694252878,-556.89,0.00020273,2]
[372586417,1752694252888,-504.15,0.00020273,2]
[372586419,1752694252898,-5492.42,0.00020273,2]
[372586421,1752694252908,-460.0,0.00020273,2]
[372586423,1752694252919,-20173.8,0.00020273,2]
[372586425,1752694252929,-460.0,0.00020273,2]
[372586427,1752694252940,-418.0448661,0.00020273,2]
[372586429,1752694252949,-460.0,0.00020273,2]
[372586431,1752694252961,-1126.17,0.00020273,2]
[372586433,1752694252970,-1749.11,0.00020273,2]
[372586435,1752694252980,-460.0,0.00020273,2]
[372586437,1752694252989,-460.0,0.00020273,2]
[372586439,1752694252999,-460.0,0.00020273,2]
[372586442,1752694253009,-460.0,0.00020273,2]
[372586444,1752694253018,-1743.43,0.00020273,2]
[372586446,1752694253027,-460.0,0.00020273,2]
[372586448,1752694253037,-469.75,0.00020273,2]
[372586450,1752694253047,-460.0,0.00020273,2]
[372586452,1752694253056,-3807.88,0.00020273,2]
[372586454,1752694253066,-460.0,0.00020273,2]
[372586456,1752694253075,-1924.77,0.00020273,2]
[372586458,1752694253084,-460.0,0.00020273,2]
[372586460,1752694253094,-1430.3,0.00020273,2]
[372586462,1752694253103,-460.0,0.00020273,2]
[372586464,1752694253113,-1538.52,0.00020273,2]
[372586466,1752694253123,-460.0,0.00020273,2]
[372586468,1752694253132,-460.0,0.00020273,2]
[372586470,1752694253142,-778.91,0.00020273,2]
[372586472,1752694253151,-2522.39,0.00020273,2]
[372586474,1752694253160,-670.27,0.00020273,2]
[372586476,1752694253170,-1027.2,0.00020273,2]
[372586478,1752694253180,-460.0,0.00020273,2]
[372586480,1752694253190,-551.73,0.00020273,2]
[372586482,1752694253200,-460.0,0.00020273,2]